fUSD/lending_fUSD_20240115
["ID","MTS","AMOUNT","RATE_DAILY","PERIOD"]
[311696106,1705336305423,-284.20844693,0.00033698,4]
[311696107,1705336305433,-1713.63,0.00033698,4]
[311696108,1705336305442,-500.0,0.00033698,4]
[311696109,1705336305452,-690.4,0.00033698,4]
[311696110,1705336305462,-500.0,0.00033698,4]
[311696111,1705336305472,-500.0,0.00033698,4]
[311696112,1705336305481,-611.53,0.00033698,4]
[311696113,1705336305491,-738.65,0.00033698,4]
[311696114,1705336305501,-500.0,0.00033698,4]
[311696115,1705336305511,-853.43,0.00033698,4]
[311696116,1705336305521,-500.0,0.00033698,4]
[311696117,1705336305531,-1659.61,0.00033698,4]
[311696118,1705336305541,-500.0,0.00033698,4]
[311696119,1705336305551,-1353.34,0.00033698,4]
[311696120,1705336305562,-525.36579754,0.00033698,4]
[311696121,1705336305572,-721.81,0.00033698,4]
[311696122,1705336305582,-926.69,0.00033698,4]
[311696123,1705336305591,-500.0,0.00033698,4]
[311696124,1705336305601,-1156.41,0.00033698,4]
[311696125,1705336305611,-500.0,0.00033698,4]
[311696126,1705336305621,-500.0,0.00033698,4]
[311696127,1705336305631,-1034.8,0.00033698,4]
[311696128,1705336305641,-500.0,0.00033698,4]
[311696129,1705336305651,-1992.05,0.00033698,4]
[311696130,1705336305661,-2418.03,0.00033698,4]
[311696131,1705336305671,-500.0,0.00033698,4]
[311696132,1705336305680,-975.07,0.00033698,4]
[311696133,1705336305690,-500.0,0.00033698,4]
[311696134,1705336305699,-1652.74,0.00033698,4]
[311696135,1705336305710,-1082.51,0.00033698,4]
[311696136,1705336305724,-500.0,0.00033698,4]
[311696137,1705336305733,-508.68099657,0.00033698,4]
[311696138,1705336305743,-1450.58,0.00033698,4]
[311696139,1705336305754,-500.0,0.00033698,4]
[311696140,1705336305763,-500.0,0.00033698,4]
[311696141,1705336305773,-500.0,0.00033698,4]
[311696142,1705336305783,-500.0,0.00033698,4]
[311696143,1705336305793,-500.0,0.00033698,4]
[311696144,1705336305803,-500.0,0.00033698,4]
[311696145,1705336305814,-500.0,0.00033698,4]
[311696146,1705336305823,-505.87165106,0.00033698,4]
[311696147,1705336305834,-4246.26,0.00033698,4]
[311696148,1705336305843,-910.34,0.00033698,4]
[311696149,1705336305853,-500.0,0.00033698,4]
[311696150,1705336305862,-1130.68,0.00033698,4]
[311696151,1705336305872,-881.59,0.00033698,4]
[311696152,1705336305881,-500.0,0.00033698,4]
[311696153,1705336305891,-597.24,0.00033698,4]
[311696154,1705336305901,-500.0,0.00033698,4]
[311696155,1705336305910,-3667.22,0.00033698,4]
[311696156,1705336305919,-500.0,0.00033698,4]
[311696157,1705336305929,-500.0,0.00033698,4]
[311696158,1705336305938,-603.11,0.00033698,4]
[311696159,1705336305948,-730.06,0.00033698,4]
[311696160,1705336305957,-5637.45,0.00033698,4]
[311696161,1705336305967,-4058.96,0.00033698,4]
[311696162,1705336305977,-500.0,0.00033698,4]
[311696163,1705336305987,-1323.04,0.00033698,4]
[311696164,1705336305997,-696.02,0.00033698,4]
[311696165,1705336306006,-512.46,0.00033698,4]
[311696166,1705336306015,-540.95,0.00033698,4]
[311696167,1705336306024,-500.0,0.00033698,4]
[311696168,1705336306034,-781.4,0.00033698,4]
[311696169,1705336306044,-1029.98,0.00033698,4]
[311696170,1705336306053,-854.2,0.00033698,5]
[311696171,1705336306064,-1067.63,0.00033698,4]
[311696172,1705336306074,-713.14,0.00033698,4]
[311696173,1705336306083,-17948.03,0.00033698,4]
[311696174,1705336306094,-7311.79,0.00033698,4]
[311696175,1705336306103,-717.05,0.00033698,5]
[311696176,1705336306113,-500.0,0.00033698,4]
[311696177,1705336306123,-162.49161194,0.00033698,4]
[311696178,1705336306133,-933.35,0.00033698,4]
[311696179,1705336306143,-728.61,0.00033698,4]
[311696180,1705336306153,-500.0,0.00033698,4]
[311696181,1705336306162,-569.18,0.00033698,4]
[311696182,1705336306171,-932.3,0.00033698,4]
[311696183,1705336306181,-500.0,0.00033698,4]
[311696184,1705336306191,-500.0,0.00033698,4]
[311696185,1705336306201,-4638.06,0.00033698,4]
[311696186,1705336306211,-1077.25,0.00033698,4]
[311696187,1705336306222,-500.0,0.00033698,4]
[311696188,1705336306232,-1827.12,0.00033698,4]
[311696189,1705336306243,-691.91,0.00033698,4]
[311696190,1705336306253,-500.0,0.00033698,4]
[311696191,1705336306262,-500.0,0.00033698,4]
[311696192,1705336306272,-5660.58,0.00033698,4]
[311696193,1705336306281,-1452.34,0.00033698,4]
[311696194,1705336306290,-852.55,0.00033698,4]
[311696195,1705336306299,-909.43,0.00033698,4]
[311696196,1705336306309,-500.0,0.00033698,4]
[311696197,1705336306318,-500.0,0.00033698,4]
[311696198,1705336306327,-500.0,0.00033698,4]
[311696199,1705336306336,-4608.99,0.00033698,4]
[311696200,1705336306346,-500.0,0.00033698,4]
[311696201,1705336306355,-612.15,0.00033698,4]
[311696202,1705336306364,-500.0,0.00033698,4]
[311696203,1705336306474,-500.0,0.00033698,4]
[311696204,1705336306484,-1036.57,0.00033698,4]
[311696205,1705336306493,-500.0,0.00033698,4]
[311696206,1705336306503,-1075.39,0.00033698,4]
[311696207,1705336306511,-1372.56,0.00033698,4]
[311696208,1705336306521,-615.38,0.00033698,4]
[311696209,1705336306530,-12456.18,0.00033698,4]
[311696210,1705336306540,-558.41,0.00033698,4]
[311696211,1705336306549,-500.0,0.00033698,4]
[311696212,1705336306559,-193.05084393,0.00033698,4]
[311696213,1705336306568,-1818.75,0.00033698,4]
[311696214,1705336306577,-500.0,0.00033698,4]
[311696215,1705336306587,-1021.56,0.00033698,4]
[311696216,1705336306596,-500.0,0.00033698,4]
[311696217,1705336306605,-12085.1,0.00033698,4]
[311696218,1705336306614,-670.13,0.00033698,4]
[311696219,1705336306623,-1009.52,0.00033698,4]
[311696220,1705336306632,-889.11,0.00033698,4]
[311696221,1705336306641,-982.41,0.00033698,4]
[311696222,1705336306650,-500.0,0.00033698,4]
[311696223,1705336306659,-570.42560844,0.00033698,10]
[311696224,1705336306669,-1077.58,0.00033698,4]
[311696225,1705336306678,-500.0,0.00033698,4]
[311696226,1705336306686,-1008.14,0.00033698,4]
[311696227,1705336306696,-7883.37,0.00033698,4]
[311696228,1705336306705,-500.0,0.00033698,4]
[311696229,1705336306714,-500.0,0.00033698,4]
[311696230,1705336306724,-2687.69,0.00033698,4]
[311696231,1705336306734,-725.21,0.00033698,4]
[311696232,1705336306743,-4819.7,0.00033698,4]
[311696233,1705336306753,-500.0,0.00033698,4]
[311696234,1705336306763,-824.72,0.00033698,4]
[311696235,1705336306772,-500.0,0.00033698,4]
[311696236,1705336306781,-19040.78,0.00033698,4]
[311696237,1705336306790,-671.18,0.00033698,4]
[311696238,1705336306799,-553.5,0.00033698,4]
[311696239,1705336306810,-500.0,0.00033698,4]
[311696240,1705336306820,-835.92,0.00033698,4]
[311696241,1705336306829,-875.33,0.00033698,4]
[311696242,1705336306839,-2750.71,0.00033698,4]
[311696243,1705336306848,-766.05,0.00033698,4]
[311696244,1705336306858,-500.0,0.00033698,4]
[311696245,1705336306868,-642.16,0.00033698,4]
[311696246,1705336306877,-1822.17,0.00033698,4]
[311696247,1705336306886,-1989.66,0.00033698,4]
[311696248,1705336306895,-981.54,0.00033698,4]
[311696249,1705336306904,-2786.42,0.00033698,4]
[311696250,1705336306913,-3981.89,0.00033698,4]
[311696251,1705336306923,-500.0,0.00033698,4]
[311696252,1705336306932,-500.0,0.00033698,4]
[311696253,1705336306941,-603.04,0.00033698,4]
[311696254,1705336306951,-535.02,0.00033698,4]
[311696255,1705336306960,-500.0,0.00033698,4]
[311696256,1705336306969,-500.0,0.00033698,4]
[311696257,1705336306979,-635.5,0.00033698,4]
[311696258,1705336306988,-500.0,0.00033698,4]
[311696259,1705336306997,-1304.28,0.00033698,4]
[311696260,1705336307007,-2167.3,0.00033698,4]
[311696261,1705336307017,-500.0,0.00033698,4]
[311696262,1705336307026,-1130.33,0.00033698,4]
[311696263,1705336307035,-2210.26,0.00033698,4]
[311696264,1705336307044,-1225.2,0.00033698,4]
[311696265,1705336307053,-1090.57,0.00033698,4]
[311696266,1705336307063,-1119.99,0.00033698,4]
[311696267,1705336307073,-500.0,0.00033698,4]
[311696268,1705336307081,-4487.95,0.00033698,4]
[311696269,1705336307090,-1883.96,0.00033698,4]
[311696270,1705336307099,-4085.7,0.00033698,4]
[311696271,1705336307109,-500.0,0.00033698,4]
[311696272,1705336307118,-460.87528158,0.00033698,4]
[311696273,1705336307127,-514.47,0.00033698,4]
[311696274,1705336307137,-500.0,0.00033698,4]
[311696275,1705336307146,-1475.63,0.00033698,4]
[311696276,1705336307155,-10376.15,0.00033698,4]
[311696277,1705336307165,-500.0,0.00033698,4]
[311696278,1705336307175,-873.69,0.00033698,4]
[311696279,1705336307184,-500.0,0.00033698,4]
[311696280,1705336307193,-500.0,0.00033698,4]
[311696281,1705336307202,-3401.36,0.00033698,4]
[311696282,1705336307211,-9747.26,0.00033698,4]
[311696283,1705336307220,-1165.22,0.00033698,4]
[311696284,1705336307230,-602.0,0.00033698,4]
[311696285,1705336307239,-8933.37,0.00033698,4]
[311696286,1705336307248,-623.90195138,0.00033698,4]
[311696287,1705336307258,-500.0,0.00033698,4]
[311696288,1705336307267,-165.08159832,0.00033698,4]
[311696289,1705336307277,-500.0,0.00033698,4]
[311696290,1705336307286,-1009.57,0.00033698,4]
[311696291,1705336307296,-2118.19,0.00033698,4]
[311696292,1705336307304,-500.0,0.00033698,4]
[311696293,1705336307314,-1705.04,0.00033698,4]
[311696294,1705336307323,-1175.44,0.00033698,4]
[311696295,1705336307332,-500.0,0.00033698,4]
[311696296,1705336307341,-620.19,0.00033698,4]
[311696297,1705336307350,-865.74,0.00033698,4]
[311696298,1705336307358,-527.47,0.00033698,4]
[311696299,1705336307367,-500.0,0.00033698,4]
[311696300,1705336307376,-1016.2,0.00033698,4]
[311696301,1705336307385,-500.0,0.00033698,4]
[311696302,1705336307395,-500.0,0.00033698,4]
[311696303,1705336307404,-815.02,0.00033698,4]
[311696304,1705336307413,-500.0,0.00033698,4]
[311696305,1705336307422,-765.11,0.00033698,4]
[311696306,1705336307431,-2635.82,0.00033698,4]
[311696307,1705336307441,-283.84568136,0.00033698,4]
[311696308,1705336307450,-38799.65,0.00033698,4]
[311696309,1705336307459,-500.0,0.00033698,4]
[311696310,1705336307469,-3358.06,0.00033698,4]
[311696311,1705336307478,-622.73,0.00033698,4]
[311696312,1705336307488,-500.0,0.00033698,4]
[311696313,1705336307497,-2373.82,0.00033698,4]
[311696314,1705336307506,-500.0,0.00033698,4]
[311696315,1705336307515,-500.0,0.00033698,4]
[311696316,1705336307525,-500.0,0.00033698,4]
[311696317,1705336307534,-1677.77,0.00033698,4]
[311696318,1705336307543,-957.17,0.00033698,4]
[311696319,1705336307553,-1335.42,0.00033698,4]
[311696320,1705336307562,-2628.0,0.00033698,4]
[311696321,1705336307571,-500.0,0.00033698,4]
[311696322,1705336307580,-503.95725268,0.00033698,4]
[311696323,1705336307589,-1041.0,0.00033698,4]
[311696324,1705336307599,-558.8,0.00033698,4]
[311696325,1705336307608,-500.0,0.00033698,4]
[311696326,1705336307617,-912.24,0.00033698,4]
[311696327,1705336307627,-500.0,0.00033698,4]
[311696328,1705336307636,-416.24,0.00033698,4]
[311696329,1705336307645,-742.46,0.00033698,4]
[311696330,1705336307655,-1332.8,0.00033698,4]
[311696331,1705336307664,-1330.01,0.00033698,4]
[311696332,1705336307673,-1774.84,0.00033698,4]
[311696333,1705336307682,-500.0,0.00033698,4]
[311696334,1705336307691,-830.63,0.00033698,4]
[311696335,1705336307700,-509.99,0.00033698,4]
[311696336,1705336307709,-745.09,0.00033698,4]
[311696337,1705336307718,-715.56,0.00033698,4]
[311696338,1705336307728,-500.0,0.00033698,4]
[311696339,1705336307739,-500.0,0.00033698,4]
[311696340,1705336307749,-500.0,0.00033698,4]
[311696341,1705336307758,-2400.35,0.00033698,4]
[311696342,1705336307767,-5459.71,0.00033698,4]
[311696343,1705336307777,-500.0,0.00033698,4]
[311696344,1705336307786,-500.0,0.00033698,4]
[311696345,1705336307795,-1697.67,0.00033698,4]
[311696346,1705336307805,-1515.35,0.00033698,4]
[311696347,1705336307816,-1426.85,0.00033698,4]
[311696348,1705336307825,-789.7,0.00033698,4]
[311696349,1705336307835,-500.0,0.00033698,4]
[311696350,1705336307843,-815.27,0.00033698,4]
[311696351,1705336307853,-2265.36,0.00033698,4]
[311696352,1705336307863,-872.91,0.00033698,4]
[311696353,1705336307872,-1342.16,0.00033698,4]
[311696354,1705336307881,-500.0,0.00033698,4]
[311696355,1705336307890,-1683.36,0.00033698,4]
[311696356,1705336307898,-500.0,0.00033698,4]
[311696357,1705336307907,-500.0,0.00033698,4]
[311696358,1705336307916,-500.0,0.00033698,4]
[311696359,1705336307925,-500.0,0.00033698,4]
[311696360,1705336307935,-500.0,0.00033698,4]
[311696361,1705336307943,-1014.09,0.00033698,4]
[311696362,1705336307953,-1155.47,0.00033698,4]
[311696363,1705336307962,-2093.7,0.00033698,4]
[311696364,1705336307971,-500.0,0.00033698,4]
[311696365,1705336307980,-500.0,0.00033698,4]
[311696366,1705336307989,-839.65,0.00033698,4]
[311696367,1705336307997,-500.0,0.00033698,4]
[311696368,1705336308006,-4195.4,0.00033698,4]
[311696369,1705336308015,-1854.6,0.00033698,4]
[311696370,1705336308024,-500.0,0.00033698,4]
[311696371,1705336308033,-500.0,0.00033698,4]
[311696372,1705336308042,-4270.33,0.00033698,4]
[311696373,1705336308051,-500.0,0.00033698,4]
[311696374,1705336308062,-5274.11,0.00033698,4]
[311696375,1705336308070,-500.0,0.00033698,4]
[311696376,1705336308079,-500.0,0.00033698,4]
[311696377,1705336308088,-1305.78,0.00033698,4]
[311696378,1705336308097,-500.0,0.00033698,4]
[311696379,1705336308107,-500.0,0.00033698,4]
[311696380,1705336308116,-1299.47,0.00033698,4]
[311696381,1705336308125,-500.0,0.00033698,4]
[311696382,1705336308134,-500.0,0.00033698,4]
[311696383,1705336308143,-1229.49,0.00033698,4]
[311696384,1705336308152,-1694.24,0.00033698,4]
[311696385,1705336308161,-315.01034339,0.00033698,4]
[311696386,1705336308171,-769.54,0.00033698,4]
[311696387,1705336308180,-855.71,0.00033698,4]
[311696388,1705336308190,-954.9,0.00033698,4]
[311696389,1705336308199,-2725.15,0.00033698,4]
[311696390,1705336308208,-1532.14,0.00033698,4]
[311696391,1705336308218,-1012.81,0.00033698,4]
[311696392,1705336308227,-500.0,0.00033698,4]
[311696393,1705336308237,-2198.47,0.00033698,4]
[311696394,1705336308246,-672.7,0.00033698,4]
[311696395,1705336308255,-719.93,0.00033698,4]
[311696396,1705336308264,-1149.24,0.00033698,4]
[311696397,1705336308273,-500.0,0.00033698,4]
[311696398,1705336308282,-500.0,0.00033698,4]
[311696399,1705336308291,-500.0,0.00033698,4]
[311696400,1705336308300,-1047.98,0.00033698,4]
[311696401,1705336308309,-1786.55,0.00033698,4]
[311696402,1705336308318,-500.0,0.00033698,4]
[311696403,1705336308327,-500.0,0.00033698,4]
[311696404,1705336308335,-500.0,0.00033698,4]
[311696405,1705336308344,-500.0,0.00033698,4]
[311696406,1705336308353,-948.85,0.00033698,4]
[311696407,1705336308362,-500.0,0.00033698,2]
[311696408,1705336308372,-500.0,0.00033698,4]
[311696409,1705336308381,-500.0,0.00033698,4]
[311696410,1705336308390,-500.0,0.00033698,4]
[311696411,1705336308399,-2646.75,0.00033698,4]
[311696412,1705336308409,-5543.93,0.00033698,4]
[311696413,1705336308418,-1312.56,0.00033698,4]
[311696414,1705336308427,-2074.03,0.00033698,4]
[311696415,1705336308436,-500.0,0.00033698,4]
[311696416,1705336308445,-500.0,0.00033698,4]
[311696417,1705336308454,-696.74,0.00033698,4]
[311696418,1705336308463,-500.0,0.00033698,4]
[311696419,1705336308472,-3104.42,0.00033698,4]
[311696420,1705336308481,-1094.78,0.00033698,4]
[311696421,1705336308491,-1092.94,0.00033698,4]
[311696422,1705336308500,-220.0554597,0.00033698,4]
[311696423,1705336308509,-500.0,0.00033698,4]
[311696424,1705336308519,-2264.13,0.00033698,4]
[311696425,1705336308528,-500.0,0.00033698,4]
[311696426,1705336308537,-2717.1,0.00033698,4]
[311696427,1705336308547,-500.0,0.00033698,4]
[311696428,1705336308556,-8863.98,0.00033698,4]
[311696429,1705336308566,-1039.11,0.00033698,4]
[311696430,1705336308575,-946.63,0.00033698,4]
[311696431,1705336308584,-500.0,0.00033698,4]
[311696432,1705336308594,-500.0,0.00033698,4]
[311696433,1705336308604,-500.0,0.00033698,4]
[311696434,1705336308613,-511.77147887,0.00033698,4]
[311696435,1705336308623,-693.84,0.00033698,4]
[311696436,1705336308632,-500.0,0.00033698,4]
[311696437,1705336308642,-500.0,0.00033698,4]
[311696438,1705336308653,-1069.36,0.00033698,4]
[311696439,1705336308663,-500.0,0.00033698,4]
[311696440,1705336308673,-951.49,0.00033698,4]
[311696441,1705336308682,-674.79,0.00033698,4]
[311696442,1705336308692,-243.65227384,0.00033698,4]
[311696443,1705336308702,-6079.2,0.00033698,4]
[311696444,1705336308712,-500.0,0.00033698,4]
[311696445,1705336308724,-1623.93,0.00033698,4]
[311696446,1705336308733,-500.0,0.00033698,4]
[311696447,1705336308743,-965.33,0.00033698,4]
[311696448,1705336308752,-500.0,0.00033698,4]
[311696449,1705336308761,-500.0,0.00033698,4]
[311696450,1705336308770,-555.29,0.00033698,4]
[311696451,1705336308780,-1581.11,0.00033698,4]
[311696452,1705336308789,-508.61782516,0.00033698,4]
[311696453,1705336308799,-4998.69,0.00033698,4]
[311696454,1705336308809,-890.99,0.00033698,4]
[311696455,1705336308818,-4924.51,0.00033698,4]
[311696456,1705336308827,-766.14,0.00033698,4]
[311696457,1705336308837,-796.52,0.00033698,4]
[311696458,1705336308847,-500.0,0.00033698,4]
[311696459,1705336308856,-3084.98,0.00033698,4]
[311696460,1705336308865,-626.2,0.00033698,4]
[311696461,1705336308875,-2344.2,0.00033698,4]
[311696462,1705336308885,-536.27,0.00033698,4]
[311696463,1705336308894,-21566.78,0.00033698,4]
[311696464,1705336308903,-3610.16,0.00033698,4]
[311696465,1705336308912,-500.0,0.00033698,4]
[311696466,1705336308921,-500.0,0.00033698,4]
[311696467,1705336308931,-1028.49,0.00033698,4]
[311696468,1705336308941,-500.0,0.00033698,4]
[311696469,1705336308950,-1983.52,0.00033698,4]
[311696470,1705336308960,-500.0,0.00033698,4]
[311696471,1705336308970,-621.43,0.00033698,4]
[311696472,1705336308979,-528.22,0.00033698,4]
[311696473,1705336308989,-865.24,0.00033698,4]
[311696474,1705336308998,-1830.92,0.00033698,4]
[311696475,1705336309008,-1119.11,0.00033698,4]
[311696476,1705336309017,-500.0,0.00033698,4]
[311696477,1705336309027,-790.25,0.00033698,4]
[311696478,1705336309036,-500.0,0.00033698,4]
[311696479,1705336309045,-1976.81,0.00033698,4]
[311696480,1705336309055,-500.0,0.00033698,4]
[311696481,1705336309065,-1123.02,0.00033698,4]
[311696482,1705336309075,-3144.37,0.00033698,4]
[311696483,1705336309084,-1797.3,0.00033698,4]
[311696484,1705336309093,-1005.06,0.00033698,4]
[311696485,1705336309102,-500.0,0.00033698,4]
[311696486,1705336309112,-1407.81,0.00033698,4]
[311696487,1705336309121,-811.49,0.00033698,4]
[311696488,1705336309131,-946.48,0.00033698,4]
[311696489,1705336309140,-500.0,0.00033698,4]
[311696490,1705336309149,-1126.56,0.00033698,4]
[311696491,1705336309159,-500.0,0.00033698,4]
[311696492,1705336309168,-500.0,0.00033698,4]
[311696493,1705336309177,-1605.83,0.00033698,4]
[311696494,1705336309187,-593.98,0.00033698,4]
[311696495,1705336309196,-500.0,0.00033698,4]
[311696496,1705336309205,-970.95,0.00033698,4]
[311696497,1705336309215,-20000.0,0.00033698,3]
[311696498,1705336309224,-500.0,0.00033698,4]
[311696499,1705336309234,-990.2,0.00033698,4]
[311696500,1705336309244,-4509.15,0.00033698,4]
[311696501,1705336309253,-500.0,0.00033698,3]
[311696502,1705336309263,-1066.91,0.00033698,4]
[311696503,1705336309272,-2329.6,0.00033698,4]
[311696504,1705336309282,-500.0,0.00033698,4]
[311696505,1705336309292,-7086.54,0.00033698,4]
[311696506,1705336309301,-507.40861487,0.00033698,4]
[311696507,1705336309311,-1891.98,0.00033698,4]
[311696508,1705336309321,-751.27,0.00033698,4]
[311696509,1705336309331,-500.0,0.00033698,4]
[311696510,1705336309341,-1875.33,0.00033698,4]
[311696511,1705336309350,-2134.88,0.00033698,4]
[311696512,1705336309359,-749.99,0.00033698,4]
[311696513,1705336309368,-2210.75,0.00033698,4]
[311696514,1705336309378,-643.93,0.00033698,4]
[311696515,1705336309387,-500.0,0.00033698,4]
[311696516,1705336309400,-500.0,0.00033698,4]
[311696517,1705336309411,-5016.39,0.00033698,4]
[311696518,1705336309421,-500.0,0.00033698,4]
[311696519,1705336309431,-2198.01,0.00033698,4]
[311696520,1705336309441,-175.28472354,0.00033698,4]
[311696521,1705336309451,-500.0,0.00033698,4]
[311696522,1705336309461,-500.0,0.00033698,4]
[311696523,1705336309470,-1458.64,0.00033698,4]
[311696524,1705336309480,-617.4,0.00033698,4]
[311696525,1705336309490,-500.0,0.00033698,4]
[311696526,1705336309500,-500.0,0.00033698,4]
[311696527,1705336309510,-2884.82,0.00033698,4]
[311696528,1705336309520,-500.0,0.00033698,4]
[311696529,1705336309530,-500.0,0.00033698,4]
[311696530,1705336309540,-500.0,0.00033698,4]
[311696531,1705336309549,-2229.18,0.00033698,4]
[311696532,1705336309560,-834.0,0.00033698,4]
[311696533,1705336309570,-1128.77,0.00033698,4]
[311696534,1705336309580,-500.0,0.00033698,4]
[311696535,1705336309590,-1062.71,0.00033698,4]
[311696536,1705336309599,-500.0,0.00033698,4]
[311696537,1705336309609,-2370.36,0.00033698,4]
[311696538,1705336309618,-1138.7,0.00033698,4]
[311696539,1705336309628,-500.0,0.00033698,4]
[311696540,1705336309637,-546.98,0.00033698,4]
[311696541,1705336309647,-1730.49,0.00033698,4]
[311696542,1705336309657,-524.66,0.00033698,4]
[311696543,1705336309667,-3932.03,0.00033698,4]
[311696544,1705336309677,-910.7,0.00033698,4]
[311696545,1705336309687,-575.25,0.00033698,4]
[311696546,1705336309697,-1336.8,0.00033698,4]
[311696547,1705336309707,-1438.97,0.00033698,4]
[311696548,1705336309718,-6317.28,0.00033698,4]
[311696549,1705336309728,-2307.43,0.00033698,4]
[311696550,1705336309740,-1784.06,0.00033698,4]
[311696551,1705336309749,-197.21776214,0.00033698,4]
[311696552,1705336309759,-1046.59,0.00033698,4]
[311696553,1705336309770,-1366.55,0.00033698,4]
[311696554,1705336309780,-500.0,0.00033698,4]
[311696555,1705336309789,-718.17,0.00033698,4]
[311696556,1705336309799,-851.16,0.00033698,4]
[311696557,1705336309811,-500.0,0.00033698,4]
[311696558,1705336309822,-3844.9,0.00033698,4]
[311696559,1705336309831,-500.0,0.00033698,4]
[311696560,1705336309841,-1533.39,0.00033698,4]
[311696561,1705336309851,-500.0,0.00033698,4]
[311696562,1705336309861,-500.0,0.00033698,4]
[311696563,1705336309871,-500.0,0.00033698,4]
[311696564,1705336309880,-500.0,0.00033698,4]
[311696565,1705336309890,-500.0,0.00033698,4]
[311696566,1705336309899,-500.0,0.00033698,4]
[311696567,1705336309909,-500.0,0.00033698,4]
[311696568,1705336309918,-3646.6,0.00033698,4]
[311696569,1705336309929,-500.0,0.00033698,4]
[311696570,1705336309941,-500.0,0.00033698,4]
[311696571,1705336309952,-2446.2,0.00033698,4]
[311696572,1705336309963,-580.83,0.00033698,4]
[311696573,1705336309974,-743.19,0.00033698,4]
[311696574,1705336309984,-755.14,0.00033698,4]
[311696575,1705336309993,-1066.42,0.00033698,4]
[311696576,1705336310003,-733.47,0.00033698,4]
[311696577,1705336310012,-1578.18,0.00033698,4]
[311696578,1705336310022,-2548.19,0.00033698,4]
[311696579,1705336310032,-385.97886259,0.00033698,4]
[311696580,1705336310041,-1326.38,0.00033698,4]
[311696581,1705336310051,-500.0,0.00033698,4]
[311696582,1705336310061,-500.0,0.00033698,4]
[311696583,1705336310071,-675.76,0.00033698,4]
[311696584,1705336310081,-1149.7,0.00033698,4]
[311696585,1705336310091,-500.0,0.00033698,4]
[311696586,1705336310101,-611.54,0.00033698,4]
[311696587,1705336310111,-500.0,0.00033698,4]
[311696588,1705336310120,-500.0,0.00033698,4]
[311696589,1705336310130,-500.0,0.00033698,4]
[311696590,1705336310140,-500.0,0.00033698,4]
[311696591,1705336310149,-500.0,0.00033698,4]
[311696592,1705336310159,-1185.57,0.00033698,4]
[311696593,1705336310169,-1572.95,0.00033698,4]
[311696594,1705336310179,-1604.0,0.00033698,4]
[311696595,1705336310190,-500.0,0.00033698,4]
[311696596,1705336310199,-5948.28,0.00033698,4]
[311696597,1705336310209,-1178.78,0.00033698,4]
[311696598,1705336310219,-1155.2,0.00033698,4]
[311696599,1705336310230,-2360.21,0.00033698,4]
[311696600,1705336310241,-2944.89,0.00033698,4]
[311696601,1705336310251,-500.0,0.00033698,4]
[311696602,1705336310262,-500.0,0.00033698,4]
[311696603,1705336310272,-4544.54,0.00033698,4]
[311696604,1705336310282,-1536.99,0.00033698,4]
[311696605,1705336310292,-887.23,0.00033698,4]